Workbook

Sheet Summary
B2: Household Budget
B3: www.piggybankbudget.com
B5: Balance
B6: Balance ( Total Income - Expenses) | E6: =GETPIVOTDATA("$ / week",$B$8)-GETPIVOTDATA("$ / week",$E$8) -> 25.64183814
B8: Income | C8: $ / week | E8: Expenses | F8: $ / week
B9: Jill's Work | C9: 423.0769231 | E9: (blank) | F9: 0
B10: Annual Tax Return | C10: 48.07692308 | E10: (blank) | F10: 0
B11: Net Pay | C11: 375 | E11: Vehicles | F11: 142.6373626
B12: Jack's work | C12: 423.0769231 | E12: Fuel | F12: 80
B13: Annual Tax Return | C13: 48.07692308 | E13: Insurance | F13: 35.71428571
B14: Net Pay | C14: 375 | E14: Maintenance | F14: 15.38461538
B15: Grand Total | C15: 846.1538462 | E15: Registration | F15: 11.53846154
E16: Services | F16: 57.46340073
E17: Electricity | F17: 23.07692308
E18: Internet and landline | F18: 23.07869836
E19: Mobile Phone | F19: 11.30777929
E20: House | F20: 390.4112447
E21: Insurance | F21: 17.30769231
E22: Loan | F22: 346.1804754
E23: Rates | F23: 26.92307692
E24: Groceries | F24: 220
E25: Food | F25: 200
E26: Toiletries and cleaning | F26: 20
E27: Fun | F27: 10
E28: Weekly entertainment | F28: 10
E29: Grand Total | F29: 820.512008

Sheet Data Entry
B1: Income
B2: Category | C2: Item | D2: Amount | E2: Frequency in Weeks | F2: $/week
B3: Jack's work | C3: Net Pay | D3: 750 | E3: 2 | F3: =IF(Income[[#This Row],[Frequency in Weeks]]>0,Income[[#This Row],[Amount]]/Income[[#This Row],[Frequency in Weeks]],0) -> 375
B4: Jack's work | C4: Annual Tax Return | D4: 2500 | E4: 52 | F4: =IF(Income[[#This Row],[Frequency in Weeks]]>0,Income[[#This Row],[Amount]]/Income[[#This Row],[Frequency in Weeks]],0) -> 48.07692308
B5: Jill's Work | C5: Net Pay | D5: 750 | E5: 2 | F5: =IF(Income[[#This Row],[Frequency in Weeks]]>0,Income[[#This Row],[Amount]]/Income[[#This Row],[Frequency in Weeks]],0) -> 375
B6: Jill's Work | C6: Annual Tax Return | D6: 2500 | E6: 52 | F6: =IF(Income[[#This Row],[Frequency in Weeks]]>0,Income[[#This Row],[Amount]]/Income[[#This Row],[Frequency in Weeks]],0) -> 48.07692308
B7: Total | F7: =SUBTOTAL(109,Income[$/week]) -> 846.1538462
B9: Expenses
B10: Category | C10: Item | D10: Amount | E10: Frequency in Weeks | F10: $/week
B11: Fun | C11: Weekly entertainment | D11: 10 | E11: 1 | F11: =IF(Expenses[[#This Row],[Frequency in Weeks]]>0,Expenses[[#This Row],[Amount]]/Expenses[[#This Row],[Frequency in Weeks]],0) -> 10
B12: Groceries | C12: Food | D12: 200 | E12: 1 | F12: =IF(Expenses[[#This Row],[Frequency in Weeks]]>0,Expenses[[#This Row],[Amount]]/Expenses[[#This Row],[Frequency in Weeks]],0) -> 200
B13: Groceries | C13: Toiletries and cleaning | D13: 20 | E13: 1 | F13: =IF(Expenses[[#This Row],[Frequency in Weeks]]>0,Expenses[[#This Row],[Amount]]/Expenses[[#This Row],[Frequency in Weeks]],0) -> 20
B14: House | C14: Loan | D14: 1500 | E14: 4.333 | F14: =IF(Expenses[[#This Row],[Frequency in Weeks]]>0,Expenses[[#This Row],[Amount]]/Expenses[[#This Row],[Frequency in Weeks]],0) -> 346.1804754
B15: House | C15: Rates | D15: 350 | E15: 13 | F15: =IF(Expenses[[#This Row],[Frequency in Weeks]]>0,Expenses[[#This Row],[Amount]]/Expenses[[#This Row],[Frequency in Weeks]],0) -> 26.92307692
B16: House | C16: Insurance | D16: 900 | E16: 52 | F16: =IF(Expenses[[#This Row],[Frequency in Weeks]]>0,Expenses[[#This Row],[Amount]]/Expenses[[#This Row],[Frequency in Weeks]],0) -> 17.30769231
B17: Services | C17: Electricity | D17: 300 | E17: 13 | F17: =IF(Expenses[[#This Row],[Frequency in Weeks]]>0,Expenses[[#This Row],[Amount]]/Expenses[[#This Row],[Frequency in Weeks]],0) -> 23.07692308
B18: Services | C18: Internet and landline | D18: 100 | E18: 4.333 | F18: =IF(Expenses[[#This Row],[Frequency in Weeks]]>0,Expenses[[#This Row],[Amount]]/Expenses[[#This Row],[Frequency in Weeks]],0) -> 23.07869836
B19: Services | C19: Mobile Phone | D19: 49 | E19: 4.3333 | F19: =IF(Expenses[[#This Row],[Frequency in Weeks]]>0,Expenses[[#This Row],[Amount]]/Expenses[[#This Row],[Frequency in Weeks]],0) -> 11.30777929
B20: Vehicles | C20: Fuel | D20: 80 | E20: 1 | F20: =IF(Expenses[[#This Row],[Frequency in Weeks]]>0,Expenses[[#This Row],[Amount]]/Expenses[[#This Row],[Frequency in Weeks]],0) -> 80
B21: Vehicles | C21: Maintenance | D21: 200 | E21: 13 | F21: =IF(Expenses[[#This Row],[Frequency in Weeks]]>0,Expenses[[#This Row],[Amount]]/Expenses[[#This Row],[Frequency in Weeks]],0) -> 15.38461538
B22: Vehicles | C22: Insurance | D22: 500 | E22: 14 | F22: =IF(Expenses[[#This Row],[Frequency in Weeks]]>0,Expenses[[#This Row],[Amount]]/Expenses[[#This Row],[Frequency in Weeks]],0) -> 35.71428571
B23: Vehicles | C23: Registration | D23: 600 | E23: 52 | F23: =IF(Expenses[[#This Row],[Frequency in Weeks]]>0,Expenses[[#This Row],[Amount]]/Expenses[[#This Row],[Frequency in Weeks]],0) -> 11.53846154
B24: Total | F24: =SUBTOTAL(109,Expenses[$/week]) -> 820.512008
B26: Balance
B27: Balance | F27: $/week
B28: Total | F28: =Income[[#Totals],[$/week]]-Expenses[[#Totals],[$/week]] -> 25.64183814
